[Event "FIDE World Rapid-ch Open 2018"]
[White "Vallejo Pons, Francisco"]
[Black "Teterev, Vitaly"]
[Site "St. Petersburg"]
[Round "3.77"]
[Annotator "ChessBase"]
[Result "1-0"]
[Date "2018.12.26"]
[WhiteElo "2695"]
[BlackElo "2486"]
[PlyCount "99"]
[TimeControl "900+10"]

1. e4 {[%emt 0:0:0]} c5 {[%emt 0:0:0]} 2. Nf3 {[%emt 0:0:0]} d6 {[%emt 0:0:0]} 3. d4 {[%emt 0:0:0]} cxd4 {[%emt 0:0:0]} 4. Qxd4 {[%emt 0:0:2]} Nf6 {[%emt 0:0:0]} 5. Bg5 {[%emt 0:0:4]} Nc6 {[%emt 0:0:0]} 6. Bb5 {[%emt 0:0:2]
} Nd7 {[%emt 0:0:0]} 7. Qc3 {[%emt 0:0:29]} Qb6 {[%emt 0:0:0]} 8. Bd3 {[%emt 0:0:56]} e6 {[%emt 0:0:59]} 9. 0-0 {[%emt 0:0:15]} Nc5 {[%emt 0:0:42]
} 10. a4 {[%emt 0:1:2]} Bd7 {[%emt 0:1:39]} 11. Na3 {[%emt 0:0:0]} a6 {[%emt 0:2:8]} 12. Rfd1 {[%emt 0:2:49]} Qb4 {[%emt 0:1:8]} 13. Nc4 {[%emt 0:1:29]} Qxc3 {[%emt 0:1:28]} 14. bxc3 {[%emt 0:0:2]} f6 {[%emt 0:1:16]
} 15. Be3 {[%emt 0:1:35]} 0-0-0 {[%emt 0:0:31]} 16. Nb6+ {[%emt 0:1:1]
} Kc7 {[%emt 0:0:1]} 17. Bxc5 {[%emt 0:0:3]} dxc5 {[%emt 0:0:0]} 18. Nxd7 {[%emt 0:0:9]} Rxd7 {[%emt 0:0:3]} 19. Bc4 {[%emt 0:0:2]
} Rxd1+ {[%emt 0:0:42]} 20. Rxd1 {[%emt 0:0:2]} Nd8 {[%emt 0:0:1]} 21. Ne1 {[%emt 0:0:59]} Bd6 {[%emt 0:0:31]} 22. Nd3 {[%emt 0:0:1]} Re8 {[%emt 0:0:0]} 23. f4 {[%emt 0:0:41]} Nc6 {[%emt 0:0:9]} 24. g3 {[%emt 0:0:14]} Na5 {[%emt 0:0:15]
} 25. Nb2 {[%emt 0:0:3]} Kc6 {[%emt 0:0:30]} 26. Kf2 {[%emt 0:0:0]} b5 {[%emt 0:0:13]} 27. axb5+ {[%emt 0:0:6]} axb5 {[%emt 0:0:1]} 28. Bxb5+ {[%emt 0:0:17]} Kxb5 {[%emt 0:0:5]} 29. Rxd6 {[%emt 0:0:2]} Nc4 {[%emt 0:1:44]} 30. Nxc4 {[%emt 0:0:32]} Kxc4 {[%emt 0:0:2]} 31. Rd7 {[%emt 0:0:51]
} Kxc3 {[%emt 0:0:38]} 32. Rxg7 {[%emt 0:0:2]} Rc8 {[%emt 0:0:0]} 33. Rxh7 {[%emt 0:0:38]} Kxc2 {[%emt 0:0:4]} 34. Ke2 {[%emt 0:0:26]
} c4 {[%emt 0:0:14]} 35. Re7 {[%emt 0:0:14]} e5 {[%emt 0:2:0]} 36. fxe5 {[%emt 0:0:11]
} fxe5 {[%emt 0:0:1]} 37. Rxe5 {[%emt 0:0:7]} c3 {[%emt 0:0:0]} 38. Rb5 {[%emt 0:0:37]} Rd8 {[%emt 0:0:13]} 39. h4 {[%emt 0:0:31]} Rd3 {[%emt 0:0:32]} 40. g4 {[%emt 0:0:55]} Rd2+ {[%emt 0:0:19]} 41. Ke3 {[%emt 0:0:5]
} Rd3+ {[%emt 0:0:0]} 42. Kf4 {[%emt 0:0:15]} Kd2 {[%emt 0:0:0]} 43. h5 {[%emt 0:0:35]} c2 {[%emt 0:0:1]} 44. Rb2 {[%emt 0:0:2]} Rb3 {[%emt 0:0:21]
} 45. Rxc2+ {[%emt 0:0:8]} Kxc2 {[%emt 0:0:1]} 46. h6 {[%emt 0:0:12]
} Rh3 {[%emt 0:0:1]} 47. g5 {[%emt 0:0:26]} Kd3 {[%emt 0:0:0]} 48. e5 {[%emt 0:0:5]} Rh1 {[%emt 0:0:52]} 49. e6 {[%emt 0:0:4]} Rf1+ {[%emt 0:0:5]} 50. Ke5 {[%emt 0:0:3]} 1-0

[Event "FIDE World Rapid-ch Open 2018"]
[White "Paravyan, David"]
[Black "Kobo, Ori"]
[Site "St. Petersburg"]
[Round "3.78"]
[Annotator "ChessBase"]
[Result "0-1"]
[Date "2018.12.26"]
[WhiteElo "2634"]
[BlackElo "2494"]
[PlyCount "162"]
[TimeControl "900+10"]

1. e4 {[%emt 0:0:0]} g6 {[%emt 0:0:0]} 2. d4 {[%emt 0:0:0]} Bg7 {[%emt 0:0:0]} 3. c4 {[%emt 0:0:0]} e6 {[%emt 0:0:0]} 4. Nc3 {[%emt 0:0:0]} Ne7 {[%emt 0:0:1]} 5. d5 {[%emt 0:0:38]} d6 {[%emt 0:0:12]} 6. Nf3 {[%emt 0:0:0]} Nd7 {[%emt 0:0:44]} 7. Be2 {[%emt 0:0:6]} Nc5 {[%emt 0:0:43]} 8. 0-0 {[%emt 0:0:20]
} 0-0 {[%emt 0:0:47]} 9. Nd4 {[%emt 0:0:1]} f5 {[%emt 0:0:40]
} 10. exf5 {[%emt 0:0:41]} Nxf5 {[%emt 0:0:39]} 11. Nxf5 {[%emt 0:0:5]} gxf5 {[%emt 0:0:32]} 12. Be3 {[%emt 0:0:35]} a5 {[%emt 0:1:40]} 13. Qd2 {[%emt 0:0:16]
} Bd7 {[%emt 0:0:38]} 14. dxe6 {[%emt 0:0:15]} Bxe6 {[%emt 0:0:0]} 15. Rad1 {[%emt 0:0:2]} Qf6 {[%emt 0:0:18]} 16. Nd5 {[%emt 0:0:25]} Qf7 {[%emt 0:0:2]} 17. Bf3 {[%emt 0:2:15]} a4 {[%emt 0:1:24]} 18. Rfe1 {[%emt 0:0:19]
} Rad8 {[%emt 0:1:21]} 19. Bg5 {[%emt 0:0:50]} Rde8 {[%emt 0:0:0]} 20. Nf4 {[%emt 0:0:2]} Ne4 {[%emt 0:0:42]} 21. Bxe4 {[%emt 0:0:52]} fxe4 {[%emt 0:0:2]} 22. Nxe6 {[%emt 0:0:3]} Rxe6 {[%emt 0:0:26]} 23. Bh4 {[%emt 0:2:0]
} Qf5 {[%emt 0:0:55]} 24. b3 {[%emt 0:0:33]} axb3 {[%emt 0:0:0]} 25. axb3 {[%emt 0:0:1]} Ra8 {[%emt 0:0:34]} 26. Bg3 {[%emt 0:0:15]} Bh6 {[%emt 0:0:39]} 27. Qe2 {[%emt 0:0:14]} e3 {[%emt 0:0:37]} 28. f4 {[%emt 0:1:44]
} c6 {[%emt 0:0:6]} 29. Rd3 {[%emt 0:0:14]} Rae8 {[%emt 0:0:0]} 30. Red1 {[%emt 0:0:2]} Bf8 {[%emt 0:0:43]} 31. Rd4 {[%emt 0:1:37]} Re4 {[%emt 0:0:22]} 32. R4d3 {[%emt 0:0:54]} h5 {[%emt 0:0:10]} 33. Rf1 {[%emt 0:0:56]
} R8e6 {[%emt 0:0:31]} 34. Be1 {[%emt 0:1:4]} Bg7 {[%emt 0:0:0]} 35. g3 {[%emt 0:0:10]} d5 {[%emt 0:0:10]} 36. Bb4 {[%emt 0:0:15]} d4 {[%emt 0:0:36]
} 37. Kh1 {[%emt 0:0:5]} c5 {[%emt 0:0:7]} 38. Ba3 {[%emt 0:0:0]} Rg6 {[%emt 0:0:20]} 39. Qf3 {[%emt 0:1:40]} b6 {[%emt 0:0:52]} 40. Bc1 {[%emt 0:0:9]} h4 {[%emt 0:0:9]} 41. Kg2 {[%emt 0:0:10]} Bh6 {[%emt 0:0:0]} 42. Bxe3 {[%emt 0:0:28]} Rxe3 {[%emt 0:0:17]} 43. Rxe3 {[%emt 0:0:0]} dxe3 {[%emt 0:0:1]} 44. Qxe3 {[%emt 0:0:2]} Re6 {[%emt 0:0:2]} 45. Qf3 {[%emt 0:0:12]} h3+ {[%emt 0:0:4]} 46. Kg1 {[%emt 0:0:4]} Bg7 {[%emt 0:0:12]
} 47. g4 {[%emt 0:0:16]} Bd4+ {[%emt 0:0:12]} 48. Kh1 {[%emt 0:0:0]} Qe4 {[%emt 0:0:6]} 49. Qxe4 {[%emt 0:0:2]} Rxe4 {[%emt 0:0:1]} 50. g5 {[%emt 0:0:1]} Kf7 {[%emt 0:0:26]} 51. f5 {[%emt 0:0:2]} Rg4 {[%emt 0:0:8]
} 52. g6+ {[%emt 0:0:9]} Kf6 {[%emt 0:0:10]} 53. Re1 {[%emt 0:0:0]} Kxf5 {[%emt 0:0:13]} 54. b4 {[%emt 0:0:0]} Bc3 {[%emt 0:0:33]} 55. Rf1+ {[%emt 0:0:6]} Kxg6 {[%emt 0:0:8]} 56. bxc5 {[%emt 0:0:1]} Rxc4 {[%emt 0:0:7]
} 57. cxb6 {[%emt 0:0:3]} Be5 {[%emt 0:0:8]} 58. Rb1 {[%emt 0:0:14]
} Rc2 {[%emt 0:0:8]} 59. b7 {[%emt 0:0:1]} Rxh2+ {[%emt 0:0:0]} 60. Kg1 {[%emt 0:0:1]} Rg2+ {[%emt 0:0:7]} 61. Kh1 {[%emt 0:0:1]} Rh2+ {[%emt 0:0:3]} 62. Kg1 {[%emt 0:0:1]} Bb8 {[%emt 0:0:11]} 63. Rb3 {[%emt 0:0:11]
} Kg5 {[%emt 0:0:8]} 64. Rc3 {[%emt 0:0:21]} Rg2+ {[%emt 0:0:0]} 65. Kh1 {[%emt 0:0:2]} Rh2+ {[%emt 0:0:10]} 66. Kg1 {[%emt 0:0:0]} Rg2+ {[%emt 0:0:20]} 67. Kh1 {[%emt 0:0:1]} Rb2 {[%emt 0:0:11]} 68. Rxh3 {[%emt 0:0:5]
} Rxb7 {[%emt 0:0:9]} 69. Kg2 {[%emt 0:0:40]} Kg4 {[%emt 0:0:0]} 70. Rf3 {[%emt 0:0:16]} Rb2+ {[%emt 0:0:9]} 71. Rf2 {[%emt 0:0:1]} Rb3 {[%emt 0:0:2]} 72. Rf8 {[%emt 0:0:24]} Bf4 {[%emt 0:0:15]} 73. Rg8+ {[%emt 0:0:2]
} Bg5 {[%emt 0:0:1]} 74. Kf2 {[%emt 0:0:15]} Rb2+ {[%emt 0:0:0]} 75. Ke1 {[%emt 0:0:1]} Kf4 {[%emt 0:0:8]} 76. Kd1 {[%emt 0:0:20]} Rg2 {[%emt 0:0:28]} 77. Re8 {[%emt 0:0:25]} Kf3 {[%emt 0:0:8]} 78. Re2 {[%emt 0:0:2]
} Rg1+ {[%emt 0:0:19]} 79. Re1 {[%emt 0:0:0]} Rg2 {[%emt 0:0:0]} 80. Re2 {[%emt 0:0:1]} Rg4 {[%emt 0:0:5]} 81. Re8 {[%emt 0:0:15]} Rc4 {[%emt 0:0:10]} 0-1

[Event "FIDE World Rapid-ch Open 2018"]
[White "Tari, Aryan"]
[Black "Hirneise, Tobias"]
[Site "St. Petersburg"]
[Round "3.79"]
[Annotator "ChessBase"]
[Result "1-0"]
[Date "2018.12.26"]
[WhiteElo "2620"]
[BlackElo "2464"]
[PlyCount "69"]
[TimeControl "900+10"]

1. e4 e5 2. Nf3 Nc6 3. d4 exd4 4. Nxd4 Nf6 5. Nxc6 bxc6 6. e5 Qe7 7. Qe2 Nd5 8. c4 Nb6 9. Nc3 Qe6 10. Qe4 d5 11. exd6 Bxd6 12. Bd3 f5 13. Qxe6+ Bxe6 14. b3 0-0-0 15. Bb2 Bxh2 16. Rxh2 Rxd3 17. Rd1 Rxd1+ 18. Nxd1 Re8 19. Kd2 Rd8+ 20. Kc1 Nd7 21. Rxh7 Nc5 22. Bxg7 Nd3+ 23. Kb1 f4 24. Rh8 Rxh8 25. Bxh8 Bg4 26. Kc2 Ne1+ 27. Kd2 Nxg2 28. Be5 Bf5 29. Nc3 Bh7 30. Ne2 f3 31. Nd4 Be4 32. Bg3 Kd7 33. b4 a6 34. a3 c5 35. Nb3 1-0

[Event "FIDE World Rapid-ch Open 2018"]
[White "Christiansen, Johan-Sebastian"]
[Black "Hakobyan, Aram"]
[Site "St. Petersburg"]
[Round "3.80"]
[Annotator "ChessBase"]
[Result "1-0"]
[Date "2018.12.26"]
[WhiteElo "2555"]
[BlackElo "2545"]
[PlyCount "113"]
[TimeControl "900+10"]

1. c4 {[%emt 0:0:0]} Nf6 {[%emt 0:0:0]} 2. g3 {[%emt 0:0:14]} g6 {[%emt 0:0:0]} 3. Bg2 {[%emt 0:0:1]} Bg7 {[%emt 0:0:0]} 4. Nf3 {[%emt 0:0:3]} 0-0 {[%emt 0:0:3]} 5. d4 {[%emt 0:0:1]} d6 {[%emt 0:0:6]} 6. 0-0 {[%emt 0:0:3]
} Ne4 {[%emt 0:0:3]} 7. Qc2 {[%emt 0:0:50]} f5 {[%emt 0:0:3]
} 8. Rd1 {[%emt 0:0:6]} Nc6 {[%emt 0:0:11]} 9. Be3 {[%emt 0:0:41]} Qe8 {[%emt 0:0:46]
} 10. d5 {[%emt 0:0:11]} Nb4 {[%emt 0:0:14]} 11. Qb3 {[%emt 0:0:0]} a5 {[%emt 0:0:2]} 12. Bd4 {[%emt 0:1:4]} Bd7 {[%emt 0:5:11]} 13. Nc3 {[%emt 0:3:50]} Bf6 {[%emt 0:3:58]} 14. Rdc1 {[%emt 0:3:32]} Qf7 {[%emt 0:1:18]
} 15. Qd1 {[%emt 0:0:17]} Na6 {[%emt 0:0:28]} 16. Bxf6 {[%emt 0:0:19]
} Qxf6 {[%emt 0:0:17]} 17. Ne1 {[%emt 0:1:46]} Nac5 {[%emt 0:0:0]} 18. Nd3 {[%emt 0:0:35]} a4 {[%emt 0:1:5]} 19. Nxc5 {[%emt 0:0:25]} Nxc5 {[%emt 0:0:2]} 20. e3 {[%emt 0:0:11]} c6 {[%emt 0:0:41]} 21. Qd2 {[%emt 0:0:5]
} Kg7 {[%emt 0:0:14]} 22. Rab1 {[%emt 0:0:1]} g5 {[%emt 0:0:0]} 23. f4 {[%emt 0:1:27]} h5 {[%emt 0:0:14]} 24. b4 {[%emt 0:0:15]} axb3 {[%emt 0:0:3]
} 25. axb3 {[%emt 0:0:1]} Ra3 {[%emt 0:1:39]} 26. Qc2 {[%emt 0:0:1]
} Rfa8 {[%emt 0:0:23]} 27. Rf1 {[%emt 0:2:10]} g4 {[%emt 0:0:0]} 28. Rfe1 {[%emt 0:0:12]} h4 {[%emt 0:0:6]} 29. Red1 Na6 {[%emt 0:0:11]
} 30. e4 {[%emt 0:0:59]} Nb4 {[%emt 0:0:4]} 31. Qd2 {[%emt 0:0:7]} c5 {[%emt 0:0:16]
} 32. e5 {[%emt 0:0:2]} dxe5 {[%emt 0:0:6]} 33. fxe5 {[%emt 0:0:1]
} Qxe5 {[%emt 0:0:16]} 34. Qg5+ {[%emt 0:0:11]} Kf8 {[%emt 0:0:0]} 35. Ne4 {[%emt 0:0:22]} Ra2 {[%emt 0:0:9]} 36. Qh6+ {[%emt 0:0:15]} Ke8 {[%emt 0:0:17]} 37. Qg6+ {[%emt 0:0:10]} Kd8 {[%emt 0:0:3]} 38. Qb6+ {[%emt 0:0:1]
} Qc7 {[%emt 0:0:18]} 39. Qxc7+ {[%emt 0:0:1]} Kxc7 {[%emt 0:0:0]} 40. Nxc5 Rc2 {[%emt 0:0:18]} 41. Rbc1 {[%emt 0:0:8]} Raa2 {[%emt 0:0:0]} 42. Rxc2 {[%emt 0:0:1]} Nxc2 {[%emt 0:0:4]} 43. Rd2 {[%emt 0:0:14]
} Ra1+ {[%emt 0:0:13]} 44. Kf2 {[%emt 0:0:0]} Ne1 {[%emt 0:0:16]} 45. Bh1 {[%emt 0:0:1]
} Nd3+ {[%emt 0:0:12]} 46. Nxd3 {[%emt 0:0:15]} Rxh1 {[%emt 0:0:0]} 47. Kg2 {[%emt 0:0:8]} Rb1 {[%emt 0:0:1]} 48. gxh4 {[%emt 0:0:11]} Be8 {[%emt 0:0:8]} 49. Rb2 {[%emt 0:0:15]} Rd1 {[%emt 0:0:4]} 50. Nf4 {[%emt 0:0:0]
} Kd6 {[%emt 0:0:2]} 51. h5 {[%emt 0:0:15]} Ke5 {[%emt 0:0:0]} 52. h6 {[%emt 0:0:1]} Kf6 {[%emt 0:0:1]} 53. Re2 {[%emt 0:0:3]} e5 {[%emt 0:0:29]
} 54. h7 {[%emt 0:0:28]} Kg7 {[%emt 0:0:3]} 55. Rxe5 {[%emt 0:0:0]} Bf7 {[%emt 0:0:14]} 56. Re7 {[%emt 0:0:2]} Rd2+ {[%emt 0:0:6]} 57. Kg3 {[%emt 0:0:3]} 1-0

[Event "FIDE World Rapid-ch Open 2018"]
[White "Shinkevich, Vitaly"]
[Black "Lobanov, Sergei"]
[Site "St. Petersburg"]
[Round "3.81"]
[Annotator "ChessBase"]
[Result "1-0"]
[Date "2018.12.26"]
[WhiteElo "2439"]
[BlackElo "2526"]
[PlyCount "73"]
[TimeControl "900+10"]

1. d4 {[%emt 0:0:0]} Nf6 {[%emt 0:0:0]} 2. Nf3 {[%emt 0:0:10]} e6 {[%emt 0:0:10]
} 3. c4 {[%emt 0:0:10]} b6 {[%emt 0:0:10]} 4. a3 {[%emt 0:0:0]} Bb7 {[%emt 0:0:25]} 5. Nc3 {[%emt 0:0:10]} d5 {[%emt 0:0:10]} 6. cxd5 {[%emt 0:0:18]
} Nxd5 {[%emt 0:0:10]} 7. Bd2 {[%emt 0:0:29]} c5 {[%emt 0:0:0]} 8. e4 {[%emt 0:0:50]} Nxc3 {[%emt 0:0:22]} 9. Bxc3 {[%emt 0:0:10]} Bxe4 {[%emt 0:1:18]} 10. Ne5 {[%emt 0:0:10]} a6 {[%emt 0:1:39]} 11. Qh5 {[%emt 0:0:0]} g6 {[%emt 0:2:49]} 12. Qe2 {[%emt 0:2:4]} Bd5 {[%emt 0:1:38]} 13. dxc5 {[%emt 0:0:10]} Bg7 {[%emt 0:0:10]} 14. Qe3 {[%emt 0:1:23]} 0-0 {[%emt 0:2:17]
} 15. cxb6 {[%emt 0:0:10]} Nd7 {[%emt 0:0:15]} 16. Nxd7 {[%emt 0:0:10]
} Qxd7 {[%emt 0:1:1]} 17. f3 {[%emt 0:2:58]} Rfb8 {[%emt 0:0:0]} 18. Bxg7 {[%emt 0:1:45]} Kxg7 {[%emt 0:0:10]} 19. Qe5+ {[%emt 0:2:24]} Kg8 {[%emt 0:0:10]} 20. Bxa6 {[%emt 0:0:58]} Rxb6 {[%emt 0:1:2]} 21. Be2 {[%emt 0:0:10]
} Qa7 {[%emt 0:0:27]} 22. Qd4 {[%emt 0:0:37]} Qa5+ {[%emt 0:0:0]} 23. Kf2 {[%emt 0:0:17]} Rb3 {[%emt 0:0:10]} 24. Rhc1 {[%emt 0:0:19]} Rab8 {[%emt 0:0:10]} 25. Rc2 {[%emt 0:0:10]} h5 {[%emt 0:0:10]} 26. Rac1 {[%emt 0:0:10]
} Qd8 {[%emt 0:0:10]} 27. Ba6 {[%emt 0:0:15]} Kh7 {[%emt 0:0:0]} 28. Rc8 {[%emt 0:0:13]} Rxb2+ {[%emt 0:0:10]} 29. Kf1 {[%emt 0:0:13]} Rb1 {[%emt 0:0:10]} 30. Rxb1 {[%emt 0:0:10]} Rxc8 {[%emt 0:0:10]} 31. Bxc8 Qxc8 32. Kg1 {[%emt 0:0:20]} Qc2 {[%emt 0:0:20]} 33. Rb8 {[%emt 0:0:10]} Qc1+ {[%emt 0:0:10]} 34. Kf2 {[%emt 0:0:10]} Kh6 {[%emt 0:0:10]} 35. Rh8+ {[%emt 0:0:10]
} Kg5 {[%emt 0:0:10]} 36. h4+ {[%emt 0:0:10]} Kf5 {[%emt 0:0:0]} 37. g4+ {[%emt 0:0:10]} 1-0

[Event "FIDE World Rapid-ch Open 2018"]
[White "Potapov, Pavel"]
[Black "Borisenko, Viacheslav"]
[Site "St. Petersburg"]
[Round "3.82"]
[Annotator "ChessBase"]
[Result "1/2-1/2"]
[Date "2018.12.26"]
[WhiteElo "2516"]
[BlackElo "2289"]
[PlyCount "218"]
[TimeControl "900+10"]

1. e4 {[%emt 0:0:0]} c5 {[%emt 0:0:0]} 2. c3 {[%emt 0:0:0]} e5 {[%emt 0:0:0]} 3. Nf3 {[%emt 0:0:0]} Nc6 {[%emt 0:0:0]} 4. Bc4 {[%emt 0:0:0]} Qc7 {[%emt 0:0:0]} 5. 0-0 {[%emt 0:0:3]} Nf6 {[%emt 0:0:25]} 6. Ng5 {[%emt 0:0:12]
} Nd8 {[%emt 0:0:4]} 7. f4 {[%emt 0:0:23]} h6 {[%emt 0:0:41]} 8. Nf3 {[%emt 0:0:8]} exf4 {[%emt 0:0:55]} 9. e5 {[%emt 0:0:6]} Ng8 {[%emt 0:0:14]
} 10. Qe2 {[%emt 0:0:45]} g5 {[%emt 0:0:39]} 11. d4 {[%emt 0:0:0]} a6 {[%emt 0:0:54]} 12. a4 {[%emt 0:0:20]} Ne7 {[%emt 0:0:50]} 13. Nbd2 {[%emt 0:0:41]} Bg7 {[%emt 0:1:6]} 14. Ne4 {[%emt 0:0:19]} 0-0 {[%emt 0:0:35]
} 15. Nf6+ {[%emt 0:0:26]} Bxf6 {[%emt 0:0:30]} 16. exf6 {[%emt 0:0:2]
} Ng6 {[%emt 0:0:1]} 17. Nxg5 {[%emt 0:1:29]} hxg5 {[%emt 0:0:0]} 18. Qh5 {[%emt 0:0:3]} d5 {[%emt 0:0:2]} 19. Qh6 {[%emt 0:0:29]} Ne6 {[%emt 0:0:3]} 20. Bxd5 {[%emt 0:0:2]} Qd8 {[%emt 0:0:7]} 21. Bxe6 {[%emt 0:1:7]
} Qxf6 {[%emt 0:0:2]} 22. Ba2 {[%emt 0:1:53]} Re8 {[%emt 0:0:0]} 23. h4 {[%emt 0:0:17]} Re2 {[%emt 0:2:51]} 24. Bd5 {[%emt 0:3:48]} cxd4 {[%emt 0:2:18]} 25. h5 {[%emt 0:0:56]} Bf5 {[%emt 0:0:14]} 26. hxg6 {[%emt 0:2:55]
} Bxg6 {[%emt 0:0:3]} 27. Bxf4 {[%emt 0:0:27]} gxf4 {[%emt 0:0:0]} 28. Rxf4 {[%emt 0:0:2]} Qg7 {[%emt 0:0:1]} 29. Qg5 {[%emt 0:0:10]} Re5 {[%emt 0:0:15]} 30. Bxf7+ {[%emt 0:1:9]} Bxf7 {[%emt 0:0:2]} 31. Qxg7+ {[%emt 0:0:2]} Kxg7 {[%emt 0:0:2]} 32. cxd4 {[%emt 0:0:0]} Re2 {[%emt 0:0:0]} 33. Rc1 {[%emt 0:0:2]} Rae8 {[%emt 0:0:13]} 34. Kh2 {[%emt 0:0:10]} R8e7 {[%emt 0:0:19]} 35. b4 {[%emt 0:0:17]} Rb2 {[%emt 0:0:29]} 36. Rg4+ {[%emt 0:0:19]
} Bg6 {[%emt 0:0:5]} 37. d5 {[%emt 0:0:4]} Rd2 {[%emt 0:0:0]} 38. Rc5 {[%emt 0:0:13]} Rd7 {[%emt 0:0:6]} 39. b5 {[%emt 0:0:15]} R2xd5 {[%emt 0:0:17]} 40. Rxd5 {[%emt 0:0:15]} Rxd5 {[%emt 0:0:1]} 41. bxa6 {[%emt 0:0:1]} bxa6 {[%emt 0:0:3]} 42. Kg3 {[%emt 0:0:3]} Kf6 {[%emt 0:0:0]} 43. Kf2 {[%emt 0:0:4]} Ra5 {[%emt 0:0:18]} 44. Ke3 {[%emt 0:0:19]} Be8 {[%emt 0:0:6]} 45. Rf4+ {[%emt 0:0:2]} Kg5 {[%emt 0:0:9]} 46. g4 {[%emt 0:0:7]
} Bd7 {[%emt 0:0:9]} 47. Kf3 {[%emt 0:0:13]} Rd5 {[%emt 0:0:0]} 48. Rb4 {[%emt 0:0:14]} a5 {[%emt 0:0:18]} 49. Rc4 {[%emt 0:0:7]} Re5 {[%emt 0:0:22]} 50. Kg3 {[%emt 0:0:19]} Be6 {[%emt 0:0:19]} 51. Rd4 {[%emt 0:0:12]
} Re3+ {[%emt 0:0:5]} 52. Kf2 {[%emt 0:0:1]} Ra3 {[%emt 0:0:0]} 53. Re4 {[%emt 0:0:8]} Bxg4 {[%emt 0:0:9]} 54. Re5+ {[%emt 0:0:2]} Kf4 {[%emt 0:0:1]} 55. Rxa5 {[%emt 0:0:17]} Ra2+ {[%emt 0:0:1]} 56. Ke1 {[%emt 0:0:8]
} Bf3 {[%emt 0:0:23]} 57. Rb5 {[%emt 0:0:23]} Be4 {[%emt 0:0:0]} 58. Rb3 {[%emt 0:0:8]} Rxa4 {[%emt 0:0:10]} 59. Kd2 {[%emt 0:0:5]} Ra8 {[%emt 0:0:11]} 60. Kc3 {[%emt 0:0:8]} Rc8+ {[%emt 0:0:2]} 61. Kd4 {[%emt 0:0:4]
} Rd8+ {[%emt 0:0:2]} 62. Kc3 {[%emt 0:0:5]} Ke3 {[%emt 0:0:0]} 63. Kc4+ {[%emt 0:0:4]} Bd3+ {[%emt 0:0:2]} 64. Kc5 {[%emt 0:0:2]} Rc8+ {[%emt 0:0:4]} 65. Kd5 {[%emt 0:0:5]} Rh8 {[%emt 0:0:5]} 66. Rb4 {[%emt 0:0:14]
} Rh5+ {[%emt 0:0:4]} 67. Kd6 {[%emt 0:0:2]} Ra5 {[%emt 0:0:0]} 68. Kc6 {[%emt 0:0:11]} Be4+ {[%emt 0:0:5]} 69. Kd6 {[%emt 0:0:12]} Kf4 {[%emt 0:0:7]} 70. Rb8 {[%emt 0:0:18]} Rd5+ {[%emt 0:0:8]} 71. Ke6 {[%emt 0:0:5]
} Rf5 {[%emt 0:0:25]} 72. Kd6 {[%emt 0:0:17]} Rf6+ {[%emt 0:0:0]} 73. Kc5 {[%emt 0:0:4]} Rh6 {[%emt 0:0:8]} 74. Kd4 {[%emt 0:0:7]} Rh1 {[%emt 0:0:4]} 75. Kc5 {[%emt 0:0:33]} Bf5 {[%emt 0:0:3]} 76. Kd4 {[%emt 0:0:14]
} Rd1+ {[%emt 0:0:2]} 77. Kc5 {[%emt 0:0:2]} Ke5 {[%emt 0:0:0]} 78. Rb4 {[%emt 0:0:46]} Be6 {[%emt 0:0:13]} 79. Rb2 {[%emt 0:0:20]} Rc1+ {[%emt 0:0:7]} 80. Kb4 {[%emt 0:0:3]} Bf5 {[%emt 0:0:34]} 81. Kb5 {[%emt 0:0:17]
} Bd3+ {[%emt 0:0:14]} 82. Kb6 {[%emt 0:0:28]} Kd6 {[%emt 0:0:0]} 83. Rb3 {[%emt 0:0:16]} Rc6+ {[%emt 0:0:19]} 84. Kb7 {[%emt 0:0:8]} Ba6+ {[%emt 0:0:12]} 85. Ka7 {[%emt 0:0:9]} Kc5 {[%emt 0:0:12]} 86. Rb2 {[%emt 0:0:32]
} Bb5 {[%emt 0:0:10]} 87. Rc2+ {[%emt 0:0:23]} Bc4 {[%emt 0:0:0]} 88. Rb2 {[%emt 0:0:21]} Rg6 {[%emt 0:0:8]} 89. Rb7 {[%emt 0:0:18]} Ra6+ {[%emt 0:0:9]} 90. Kb8 {[%emt 0:0:1]} Bd5 {[%emt 0:0:12]} 91. Ra7 {[%emt 0:0:16]
} Rh6 {[%emt 0:0:8]} 92. Re7 {[%emt 0:0:6]} Rh8+ {[%emt 0:0:0]} 93. Kc7 {[%emt 0:0:4]} Ra8 {[%emt 0:0:7]} 94. Kd7 {[%emt 0:0:4]} Ra4 {[%emt 0:0:23]} 95. Kc7 {[%emt 0:0:4]} Ra6 {[%emt 0:0:6]} 96. Kd7 {[%emt 0:0:14]
} Rh6 {[%emt 0:0:15]} 97. Kc7 {[%emt 0:0:8]} Be6 {[%emt 0:0:0]} 98. Rg7 {[%emt 0:0:20]} Rf6 {[%emt 0:0:8]} 99. Re7 {[%emt 0:0:5]} Bd5 {[%emt 0:0:10]} 100. Kd7 {[%emt 0:0:8]} Ra6 {[%emt 0:0:8]} 101. Kc7 {[%emt 0:0:4]
} Ra8 {[%emt 0:0:11]} 102. Kd7 {[%emt 0:0:8]} Bc6+ {[%emt 0:0:0]} 103. Ke6 {[%emt 0:0:5]} Bd5+ {[%emt 0:0:3]} 104. Ke5 {[%emt 0:0:0]} Rh8 {[%emt 0:0:7]} 105. Rc7+ {[%emt 0:0:9]} Bc6 {[%emt 0:0:1]} 106. Re7 {[%emt 0:0:9]} Rh5+ {[%emt 0:0:4]} 107. Kf4 {[%emt 0:0:3]} Kd4 {[%emt 0:0:2]
} 108. Re1 {[%emt 0:0:7]} Rh4+ {[%emt 0:0:13]} 109. Kg3 {[%emt 0:0:2]
} Rh7 {[%emt 0:0:5]} 1/2-1/2

[Event "FIDE World Rapid-ch Open 2018"]
[White "Fakhrutdinov, Timur"]
[Black "Reshetnikov, Alexey"]
[Site "St. Petersburg"]
[Round "3.83"]
[Annotator "ChessBase"]
[Result "0-1"]
[Date "2018.12.26"]
[WhiteElo "2481"]
[BlackElo "2492"]
[PlyCount "66"]
[TimeControl "900+10"]

1. e4 {[%emt 0:0:0]} c5 {[%emt 0:0:41]} 2. Nf3 {[%emt 0:0:0]} Nc6 {[%emt 0:0:3]
} 3. d4 {[%emt 0:0:0]} cxd4 {[%emt 0:0:3]} 4. Nxd4 {[%emt 0:0:0]} Qb6 {[%emt 0:0:12]} 5. Nb3 {[%emt 0:0:3]} Nf6 {[%emt 0:0:3]} 6. Nc3 {[%emt 0:0:4]} e6 {[%emt 0:0:2]} 7. a3 {[%emt 0:0:20]} a6 {[%emt 0:0:0]} 8. Bf4 {[%emt 0:0:29]} e5 {[%emt 0:6:22]} 9. Bg5 {[%emt 0:1:29]} Be7 {[%emt 0:0:4]
} 10. Bxf6 {[%emt 0:2:3]} Bxf6 {[%emt 0:0:3]} 11. Nd5 {[%emt 0:0:17]
} Qd8 {[%emt 0:0:3]} 12. Nd2 {[%emt 0:1:27]} b5 {[%emt 0:0:0]} 13. a4 {[%emt 0:0:51]} Rb8 {[%emt 0:0:2]} 14. axb5 {[%emt 0:1:10]} axb5 {[%emt 0:0:1]} 15. b4 {[%emt 0:0:41]} 0-0 {[%emt 0:1:1]} 16. Bd3 {[%emt 0:1:23]
} Bg5 {[%emt 0:0:50]} 17. Nf3 {[%emt 0:0:26]} Bh6 {[%emt 0:0:0]} 18. Qe2 {[%emt 0:1:14]} Ne7 {[%emt 0:0:54]} 19. 0-0 {[%emt 0:1:35]} Nxd5 {[%emt 0:0:53]} 20. exd5 {[%emt 0:0:2]} d6 {[%emt 0:0:3]} 21. h3 {[%emt 0:1:18]
} f5 {[%emt 0:0:29]} 22. Bxb5 {[%emt 0:0:43]} Qb6 {[%emt 0:0:0]} 23. c4 {[%emt 0:0:7]} e4 {[%emt 0:1:0]} 24. Nd2 {[%emt 0:0:55]} Bf4 {[%emt 0:1:38]
} 25. Nb3 {[%emt 0:0:16]} Be5 {[%emt 0:0:11]} 26. Ra4 {[%emt 0:0:0]} f4 {[%emt 0:0:15]} 27. Qxe4 {[%emt 0:1:2]} f3 {[%emt 0:0:1]} 28. Na5 {[%emt 0:0:45]} Rf4 {[%emt 0:0:48]} 29. Qe3 {[%emt 0:0:16]} Qd8 {[%emt 0:0:30]
} 30. Nc6 {[%emt 0:0:14]} Qg5 {[%emt 0:0:5]} 31. g3 {[%emt 0:0:0]} Qh5 {[%emt 0:0:7]} 32. Nxe5 {[%emt 0:0:19]} dxe5 {[%emt 0:0:6]} 33. h4 {[%emt 0:0:13]} Rxh4 {[%emt 0:0:3]} 0-1